{"text_format":"1","workbook":"xlsx","n_sheets":1,"sheets":["Parenthood Tax Rebate"],"not_rendered":{"charts":0,"images":0,"macros":1,"external_links":0,"defined_names":1,"comments":0,"pivot_tables":0},"unopened":[],"bounds":{"document_bytes":16777216,"sheet_cells":100000,"rows_first":2000,"rows_last":500,"rows_between":2000,"halvings":0,"cell_chars":16384,"cell_head_chars":4096},"cells_cut":0,"cells_raw":0,"read":"whole","date_system":"1900"}

{"sheet":"Parenthood Tax Rebate","index":0,"n_rows":93,"n_cols":34,"rows_kept":93,"cut":false,"hidden":false,"merged":[[62,1,63,18],[15,3,15,9],[1,1,1,18],[3,1,3,18],[5,1,5,18],[54,1,54,18],[55,3,58,16]]}
[]
[null,"Check your Eligibility for Parenthood Tax Rebate (PTR)\n(only applies to children born to the family/adopted by family on or after 1 Jan 2008)"]
[]
[null,"Note: This template only applies to children born to the family/adopted by family on or after 1 Jan 2008. \n"]
[]
[null,"Please fill in the required fields. Scroll down for the results.",null,null,null,null,null,null,null,null,null,null,null,null,null,null,null,null,null,null,"Lists for each querion option."]
[null,null,null,null,null,null,null,null,null,null,null,null,null,null,null,null,null,null,null,null,1,4,5,"6a","6b","7a","7b","7c","7d"]
[null,null,1,"What is your marital status?",null,null,null,null,null,null,null,{"$f":"VLOOKUP(K8,$U$19:$V$28,2,FALSE)","v":{"$error":"#N/A"}},{"$f":"IF(L8=1,1,0)","v":{"$error":"#N/A"}},{"$f":"L8","v":{"$error":"#N/A"}},null,null,{"$f":"IF(COUNTA(K8)=0,\"*required field\",\" \")","v":"*required field"},{"$f":"IF(COUNTA(K8)=0,\"*required field\",\" \")","v":"*required field"},null,null,"Single",{"$f":"IF($N$8=1,1,\" \")","v":{"$error":"#N/A"}},{"$f":"IF($N$8=1,\"Yes\",\" \")","v":{"$error":"#N/A"}},{"$f":"IF($O$22=\"Y\",\"Yes\",\" \")","v":{"$error":"#N/A"}},{"$f":"IF($N$27=\"N\",\"Yes\",\" \")","v":{"$error":"#N/A"}},{"$f":"IF($O$23=\"Y\",\"Yes\",\" \")","v":{"$error":"#N/A"}},{"$f":"IF($N$35=\"Y\",\"Yes\",\".\")","v":{"$error":"#N/A"}},{"$f":"IF($N$37=\"Y\",\"Yes\",\".\")","v":{"$error":"#N/A"}},{"$f":"IF($N$46=\"N\",\"Yes\",\".\")","v":{"$error":"#N/A"}}]
[null,null,null,null,null,null,null,null,null,null,null,null,null,null,null,null,null,null,null,null,"Married",{"$f":"IF($N$8=1,2,\" \")","v":{"$error":"#N/A"}},{"$f":"IF($N$8=1,\"No\",\" \")","v":{"$error":"#N/A"}},{"$f":"IF($O$22=\"Y\",\"No\",\" \")","v":{"$error":"#N/A"}},{"$f":"IF($N$27=\"N\",\"No\",\" \")","v":{"$error":"#N/A"}},{"$f":"IF($O$23=\"Y\",\"No\",\" \")","v":{"$error":"#N/A"}},{"$f":"IF($N$35=\"Y\",\"No\",\".\")","v":{"$error":"#N/A"}},{"$f":"IF($N$37=\"Y\",\"No\",\".\")","v":{"$error":"#N/A"}},{"$f":"IF($N$46=\"N\",\"No\",\".\")","v":{"$error":"#N/A"}}]
[null,null,2,"Date of marriage (dd/mmm/yyyy)",null,null,null,null,null,null,null,null,{"$f":"IF(COUNTA(K10)=1,1,\".\")","v":"."},null,null,null,null,{"$f":"IF(COUNTA(K10)=0,\"*required field\",\" \")","v":"*required field"},null,null,"Separated/Divorced",{"$f":"IF($N$8=1,\"3rd and beyond\",\" \")","v":{"$error":"#N/A"}}]
[null,null,null,null,null,null,null,null,null,null,null,null,null,null,null,null,null,null,null,null,"Widowed"]
[null,null,3,"Date of birth of your child  (dd/mmm/yyyy)",null,null,null,null,null,null,null,null,{"$f":"IF(COUNTA(K12)=1,1,\".\")","v":"."},null,null,null,null,{"$f":"IF(COUNTA(K12)=0,\"*required field\",\" \")","v":"*required field"}]
[null,null,null,"Year child born",null,null,null,null,null,null,null,{"$f":"IF(AND(N8=1,COUNTA(K12)=1),YEAR(K12),\".\")","v":{"$error":"#N/A"}}]
[null,null,null,"Child born on or after 1 Jan 2008?",null,null,null,null,null,null,null,{"$f":"IF(AND(N8=1,COUNTA(K12)=1),IF(L13>2007,\"Y\",\"N\"),\".\")","v":{"$error":"#N/A"}},null,null,null,null,null,null,null,null,"Matrix"]
[]
[null,null,4,"Order of birth of your child (Click here to determine the order of birth)*",null,null,null,null,null,null,null,{"$f":"IF(COUNTA(K16)=0,\".\",LEFT(K16,1))","v":"."},{"$f":"IF(COUNTA($K$16)=1,1,\".\")","v":"."},{"$f":"IF(AND($M$8=1,$M$10=1,$M$12=1),L16,\".\")","v":{"$error":"#N/A"}},null,null,null,{"$f":"IF(COUNTA(K16)=0,\"*required field\",\" \")","v":"*required field"}]
[]
[]
[null,null,5,"Are you AND your spouse the natural parents of the child?",null,null,null,null,null,null,null,{"$f":"IF(COUNTA(K19)=1,LEFT(K19,1),\".\")","v":"."},{"$f":"IF(K19=\"NO\",\"N\",IF(AND(COUNTA(K19)=1,$L$14=\"N\"),\"NA\",L19))","v":{"$error":"#N/A"}},{"$f":"IF(AND($M$8=1,$M$10=1,$M$12=1,$M$16=1),$M$20,\".\")","v":{"$error":"#N/A"}},null,null,null,{"$f":"IF(COUNTA(K19)=0,\"*required field\",\" \")","v":"*required field"},null,null,"Single","S"]
[null,null,null,"Age of child when parents married?",null,null,null,null,null,null,null,{"$f":"IFERROR(DATEDIF($K$12,$K$10,\"y\"),0)","v":0},{"$f":"IF($M$21=\"Y\",\"NA2\",M19)","v":{"$error":"#N/A"}}]
[null,null,null,"5b) Is child below 6 years old when parents married?",null,null,null,null,null,null,null,{"$f":"IF(L20=\".\",\".\",IF(L20<6,\"Y\",\"N\"))","v":"Y"},{"$f":"IF(AND(L14=\"N\",K19=\"Yes\",L21=\"N\"),\"Y\",\".\")","v":{"$error":"#N/A"}},{"$f":"IF(L21=\"Y\",1,\".\")","v":1},{"$f":"IF(AND($M$8=1,$M$10=1,$M$12=1,$M$16=1,$N$19=\"Y\"),L21,\".\")","v":{"$error":"#N/A"}}]
[null,null,null,"Conditional formatting purpose (Natural parent and child below 6 years when parents married)",null,null,null,null,null,null,null,null,null,null,{"$f":"IF(AND($N$19=\"Y\",$O$21=\"Y\"),\"Y\",\".\")","v":{"$error":"#N/A"}}]
[null,null,null,"Conditional formatting purpose (Not natural parent)",null,null,null,null,null,null,null,null,null,null,{"$f":"IF(AND($M$8=1,$M$10=1,$M$12=1,$N$19=\"N\"),\"Y\",\".\")","v":{"$error":"#N/A"}}]
[null,null,null,null,null,null,null,null,null,null,null,null,null,null,null,null,null,null,null,null,"Married",1]
[null,null,6,"Is your child:"]
[]
[null,null,6,"Is your child a Singapore citizen at the time of birth \n",null,null,null,null,null,null,null,{"$f":"IF(COUNTA(K27)=1,LEFT(K27,1),\".\")","v":"."},{"$f":"IF(L27=\"N\",1,\".\")","v":"."},{"$f":"IF(AND($M$8=1,$M$10=1,$M$12=1,$M$16=1,$N$19=\"Y\",$O$22=\"Y\"),L27,\".\")","v":{"$error":"#N/A"}},null,null,null,{"$f":"IF(COUNTA(K27)=0,\"*required field\",\" \")","v":"*required field"},null,null,"Separated/Divorced","SD"]
[null,null,null,"or within 12 months thereafter?",null,null,null,null,null,null,null,null,null,null,null,null,null,null,null,null,"Widowed","W"]
[null,null,null,"b) A Singapore citizen within 12 months from date of birth? ",null,null,null,null,null,null,null,{"$f":"IF(COUNTA(K29)=1,LEFT(K29,1),\".\")","v":"."},{"$f":"IF(L29=\"Y\",1,\".\")","v":"."},{"$f":"IF(AND($M$8=1,$M$10=1,$M$12=1,$M$16=1,$N$19=\"Y\",$O$22=\"Y\",$M$27=1),L29,\".\")","v":{"$error":"#N/A"}},null,null,null,{"$f":"IF(COUNTA(K29)=0,\"*required field\",\" \")","v":"*required field"}]
[]
[]
[]
[null,null,6,"Is your child:"]
[]
[null,null,null,"a) Legally adopted on or after 1 Jan 2008?",null,null,null,null,null,null,null,{"$f":"IF(COUNTA(K35)=1,LEFT(K35,1),\".\")","v":"."},{"$f":"IF(L35=\"Y\",1,\".\")","v":"."},{"$f":"IF(AND($M$8=1,$M$10=1,$M$12=1,$M$16=1,$N$19=\"N\",$O$23=\"Y\"),L35,\".\")","v":{"$error":"#N/A"}},null,null,null,{"$f":"IF(COUNTA(K35)=0,\"*required field\",\" \")","v":"*required field"}]
[]
[null,null,null,"b) Legally adopted before he reaches 6 years old?",null,null,null,null,null,null,null,{"$f":"IF(COUNTA(K37)=1,LEFT(K37,1),\".\")","v":"."},{"$f":"IF(L37=\"Y\",1,\".\")","v":"."},{"$f":"IF(AND($M$8=1,$M$10=1,$M$12=1,$M$16=1,$N$19=\"N\",$O$23=\"Y\",$M$35=1),L37,\".\")","v":{"$error":"#N/A"}},null,null,null,{"$f":"IF(COUNTA(K37)=0,\"*required field\",\" \")","v":"*required field"}]
[]
[]
[]
[]
[]
[]
[]
[]
[null,null,null,"c) A Singapore citizen at the time of legal adoption ",null,null,null,null,null,null,null,{"$f":"IF(COUNTA(K46)=1,LEFT(K46,1),\".\")","v":"."},{"$f":"IF(L46=\"N\",1,\".\")","v":"."},{"$f":"IF(AND($M$8=1,$M$10=1,$M$12=1,$M$16=1,$N$19=\"N\",$O$23=\"Y\",$M$35=1,$M$37=1),L46,\".\")","v":{"$error":"#N/A"}},null,null,null,{"$f":"IF(COUNTA(K46)=0,\"*required field\",\" \")","v":"*required field"}]
[null,null,null,"or within 12 months thereafter?"]
[null,null,null,"d) A Singapore citizen within 12 months from date of adoption? ",null,null,null,null,null,null,null,{"$f":"IF(COUNTA(K48)=1,LEFT(K48,1),\".\")","v":"."},{"$f":"IF(L48=\"Y\",1,\".\")","v":"."},{"$f":"IF(AND($M$8=1,$M$10=1,$M$12=1,$M$16=1,$N$19=\"N\",$O$23=\"Y\",$M$35=1,$M$37=1,$M$46=1),L48,\".\")","v":{"$error":"#N/A"}},null,null,null,{"$f":"IF(COUNTA(K48)=0,\"*required field\",\" \")","v":"*required field"}]
[]
[]
[]
[]
[null,null,null,"For vlookup formula",null,null,null,null,null,null,null,null,null,{"$f":"N8&N16&N19&O21&N27&N35&N37&N46","v":{"$error":"#N/A"}}]
[]
[null,"Results",null,null,null,null,null,null,null,null,null,null,null,null,null,null,null,null,null,null,null,"YOM",{"$f":"YEAR(K10)","v":1900}]
[null,null,null,{"$f":"IFERROR(VLOOKUP(N53,AC63:AD93,2,FALSE),\"Please complete the required fields\")","v":"Please complete the required fields"},null,null,null,null,null,null,null,null,null,null,null,null,null,null,null,null,null,"YOB",{"$f":"YEAR(K12)","v":1900}]
[null,null,null,null,null,null,null,null,null,null,null,null,null,null,null,null,null,null,null,null,null,"PTR Year",{"$f":"IF(OR(COUNTA(K10)=0,COUNTA(K12)=0),\" \",IF(K10>K12,W55,W56))","v":" "}]
[]
[]
[]
[null,null,null,"Click here to find out how to claim PTR"]
[]
[null,"*To avoid double claims for PTR, no child will be considered as a member of two households. Thus, children from a previous marriage will be included in the family unit of one parent after taking into consideration the rights of custody, care and control and the living arrangements of the child, in order of priority.\n\nAny sibling who is deceased / a ^stillborn child will be counted in determining the number of siblings a child has at the time of his/her birth, adoption, or marriage of his/her parents, as the case may be. \n\n^ This is applicable for PTR claim effective from the Year of Assessment (YA) 2022 (or a subsequent YA), and where the natural mother of the stillborn child is a member of the same household of the child in respect of whom PTR is being claimed.",null,null,null,null,null,null,null,null,null,null,null,null,null,null,null,null,null,null,1,4,5,"5b",6,"7a","7b","7c","Total","Remarks","PTR link?","Remarks "]
[null,null,null,null,null,null,null,null,null,null,null,null,null,null,null,null,null,null,null,null,"S",".",".",".",".",".",".",".",{"$f":"U64&V64&W64&X64&Y64&Z64&AA64&AB64","v":"S......."},"You are not eligible to claim PTR. \nYou may claim PTR if you are a married, divorced or widowed tax resident of Singapore. "]
[null,null,null,null,null,null,null,null,null,null,null,null,null,null,null,null,null,null,null,null,"SD",".",".",".",".",".",".",".",{"$f":"U65&V65&W65&X65&Y65&Z65&AA65&AB65","v":"SD......."},"For us to review your claim, please email us a scanned copy of the separation/ divorce documents and the child custody order (if any) via myTaxMail by logging into myTax Portal (https://mytax.iras.gov.sg) > myTax Mail using your Singpass or Singpass Foreign user Account (SFA)."]
[null,null,null,null,null,null,null,null,null,null,null,null,null,null,null,null,null,null,null,null,1,1,"NA",".",".",".",".",".","11NA.....","This tool only applies to children born to the family on or after 1 Jan 2008.\nYou may contact our Taxpayer Services Officer at 1800-356 8300 to check your eligibility for PTR."]
[null,null,null,null,null,null,null,null,null,null,null,null,null,null,null,null,null,null,null,null,1,1,"NA2",".",".",".",".",".","11NA2.....","You are not eligible to claim PTR. \nPTR is only applicable for parents whose child is born to them and their marriage is registered before the child reaches 6 years old"]
[null,null,null,null,null,null,null,null,null,null,null,null,null,null,null,null,null,null,null,null,1,1,"Y","N",".",".",".",".","11YN....","You are not eligible to claim PTR. \nPTR is only applicable for parents whose child is born to them and their marriage is registered before the child reaches 6 years old"]
[null,null,null,null,null,null,null,null,null,null,null,null,null,null,null,null,null,null,null,null,1,1,"Y","Y","Y",".",".",".","11YYY...",{"$f":"AF69&$W$57&\". \"&AG69&$W$57&\".\"&AH69","v":"You are eligible for PTR of $5,000 if you are a Singapore tax resident in the year  . This PTR may be shared with your spouse if he/she is also a Singapore tax resident in the year  .\n\nPlease refer to the link below on how to claim the rebate."},"YES","You are eligible for PTR of $5,000 if you are a Singapore tax resident in the year ","This PTR may be shared with your spouse if he/she is also a Singapore tax resident in the year ","\n\nPlease refer to the link below on how to claim the rebate."]
[null,null,null,null,null,null,null,null,null,null,null,null,null,null,null,null,null,null,null,null,1,1,"Y","Y","N",".",".",".","11YYN...","You are not eligible to claim PTR. \nPTR is only applicable for child who is a Singapore citizen at the time of birth or within 12 months from date of birth. "]
[null,null,null,null,null,null,null,null,null,null,null,null,null,null,null,null,null,null,null,null,1,1,"N",".",".","N",".",".","11N..N..","This tool only applies to children legally adopted by the family on or after 1 Jan 2008.\nYou may contact our Taxpayer Services Officer at 1800-356 8300 to check your eligibility for PTR."]
[null,null,null,null,null,null,null,null,null,null,null,null,null,null,null,null,null,null,null,null,1,1,"N",".",".","Y","N",".","11N..YN.","You are not eligible to claim PTR. \nPTR is applicable for a child legally adopted by the family but before he reaches 6 years old. "]
[null,null,null,null,null,null,null,null,null,null,null,null,null,null,null,null,null,null,null,null,1,1,"N",".",".","Y","Y","Y","11N..YYY","You are eligible for PTR of $5000 if you are a Singapore tax resident in the year your child was adopted. This PTR may be shared with your spouse if he/she is also a Singapore tax resident in the same year.\n\nPlease refer to the link below on how to claim the rebate.","YES"]
[null,null,null,null,null,null,null,null,null,null,null,null,null,null,null,null,null,null,null,null,1,1,"N",".",".","Y","Y","N","11N..YYN","You are not eligible to claim PTR. \nPTR is only applicable for legally adopted child who becomes a Singapore citizen at the time of legal adoption or within 12 months from date of adoption. "]
[null,null,null,null,null,null,null,null,null,null,null,null,null,null,null,null,null,null,null,null,1,2,"NA",".",".",".",".",".",{"$f":"U75&V75&W75&X75&Y75&Z75&AA75&AB75","v":"12NA....."},"This tool only applies to children born to the family on or after 1 Jan 2008.\nYou may contact our Taxpayer Services Officer at 1800-356 8300 to check your eligibility for PTR."]
[null,null,null,null,null,null,null,null,null,null,null,null,null,null,null,null,null,null,null,null,1,2,"NA2",".",".",".",".",".","12NA2.....","You are not eligible to claim PTR. \nPTR is only applicable for parents whose child is born to them and their marriage is registered before the child reaches 6 years old"]
[null,null,null,null,null,null,null,null,null,null,null,null,null,null,null,null,null,null,null,null,1,2,"Y","N",".",".",".",".","12YN....","You are not eligible to claim PTR. \nPTR is only applicable for parents whose child is born to them and their marriage is registered before the child reaches 6 years old"]
[null,null,null,null,null,null,null,null,null,null,null,null,null,null,null,null,null,null,null,null,1,2,"Y","Y","Y",".",".",".","12YYY...",{"$f":"AF78&$W$57&\". \"&AG78&$W$57&\".\"&AH78","v":"You are eligible for PTR of $10,000 if you are a Singapore tax resident in the year  . This PTR may be shared with your spouse if he/she is also a Singapore tax resident in the year  .\n\nPlease refer to the link below on how to claim the rebate."},"YES","You are eligible for PTR of $10,000 if you are a Singapore tax resident in the year ","This PTR may be shared with your spouse if he/she is also a Singapore tax resident in the year ","\n\nPlease refer to the link below on how to claim the rebate."]
[null,null,null,null,null,null,null,null,null,null,null,null,null,null,null,null,null,null,null,null,1,2,"Y","Y","N",".",".",".","12YYN...","You are not eligible to claim PTR. \nPTR is only applicable for child who is a Singapore citizen at the time of birth or within 12 months from date of birth. "]
[null,null,null,null,null,null,null,null,null,null,null,null,null,null,null,null,null,null,null,null,1,2,"N",".",".","N",".",".","12N..N..","This tool only applies to children legally adopted by the family on or after 1 Jan 2008.\nYou may contact our Taxpayer Services Officer at 1800-356 8300 to check your eligibility for PTR."]
[null,null,null,null,null,null,null,null,null,null,null,null,null,null,null,null,null,null,null,null,1,2,"N",".",".","Y","N",".","12N..YN.","You are not eligible to claim PTR. \nPTR is applicable for a child legally adopted by the family but before he reaches 6 years old. "]
[null,null,null,null,null,null,null,null,null,null,null,null,null,null,null,null,null,null,null,null,1,2,"N",".",".","Y","Y","Y","12N..YYY","You are eligible for PTR of $10,000 if you are a Singapore tax resident in the year your child was adopted. This PTR may be shared with your spouse if he/she is also a Singapore tax resident in the same year.\n\nPlease refer to the link below on how to claim the rebate.","YES"]
[null,null,null,null,null,null,null,null,null,null,null,null,null,null,null,null,null,null,null,null,1,2,"N",".",".","Y","Y","N","12N..YYN","You are not eligible to claim PTR. \nPTR is only applicable for legally adopted child who becomes a Singapore citizen at the time of legal adoption or within 12 months from date of adoption. "]
[null,null,null,null,null,null,null,null,null,null,null,null,null,null,null,null,null,null,null,null,1,3,"NA",".",".",".",".",".",{"$f":"U84&V84&W84&X84&Y84&Z84&AA84&AB84","v":"13NA....."},"This tool only applies to children born to the family on or after 1 Jan 2008.\nYou may contact our Taxpayer Services Officer at 1800-356 8300 to check your eligibility for PTR."]
[null,null,null,null,null,null,null,null,null,null,null,null,null,null,null,null,null,null,null,null,1,3,"NA2",".",".",".",".",".","13NA2.....","You are not eligible to claim PTR. \nPTR is only applicable for parents whose child is born to them and their marriage is registered before the child reaches 6 years old"]
[null,null,null,null,null,null,null,null,null,null,null,null,null,null,null,null,null,null,null,null,1,3,"Y","N",".",".",".",".","13YN....","You are not eligible to claim PTR. \nPTR is only applicable for parents whose child is born to them and their marriage is registered before the child reaches 6 years old"]
[null,null,null,null,null,null,null,null,null,null,null,null,null,null,null,null,null,null,null,null,1,3,"Y","Y","Y",".",".",".","13YYY...",{"$f":"AF87&$W$57&\". \"&AG87&$W$57&\".\"&AH87","v":"You are eligible for PTR of $20,000 if you are a Singapore tax resident in the year  . This PTR may be shared with your spouse if he/she is also a Singapore tax resident in the year  .\n\nPlease refer to the link below on how to claim the rebate."},"YES","You are eligible for PTR of $20,000 if you are a Singapore tax resident in the year ","This PTR may be shared with your spouse if he/she is also a Singapore tax resident in the year ","\n\nPlease refer to the link below on how to claim the rebate."]
[null,null,null,null,null,null,null,null,null,null,null,null,null,null,null,null,null,null,null,null,1,3,"Y","Y","N",".",".",".","13YYN...","You are not eligible to claim PTR. \nPTR is only applicable for child who is a Singapore citizen at the time of birth or within 12 months from date of birth. "]
[null,null,null,null,null,null,null,null,null,null,null,null,null,null,null,null,null,null,null,null,1,3,"N",".",".","N",".",".","13N..N..","This tool only applies to children legally adopted by the family on or after 1 Jan 2008.\nYou may contact our Taxpayer Services Officer at 1800-356 8300 to check your eligibility for PTR."]
[null,null,null,null,null,null,null,null,null,null,null,null,null,null,null,null,null,null,null,null,1,3,"N",".",".","Y","N",".","13N..YN.","You are not eligible to claim PTR. \nPTR is applicable for a child legally adopted by the family but before he reaches 6 years old. "]
[null,null,null,null,null,null,null,null,null,null,null,null,null,null,null,null,null,null,null,null,1,3,"N",".",".","Y","Y","Y","13N..YYY","You are eligible for PTR of $20,000 if you are a Singapore tax resident in the year your child was adopted. This PTR may be shared with your spouse if he/she is also a Singapore tax resident in the same year.\n\nPlease refer to the link below on how to claim the rebate.","YES"]
[null,null,null,null,null,null,null,null,null,null,null,null,null,null,null,null,null,null,null,null,1,3,"N",".",".","Y","Y","N","13N..YYN","You are not eligible to claim PTR. \nPTR is only applicable for legally adopted child who becomes a Singapore citizen at the time of legal adoption or within 12 months from date of adoption. "]
[null,null,null,null,null,null,null,null,null,null,null,null,null,null,null,null,null,null,null,null,"W",".",".",".",".",".",".",".","W.......","For us to review your claim, please email us via myTaxMail by logging into myTax Portal (https://mytax.iras.gov.sg) > myTax Mail using your Singpass or or Singpass Foreign user Account (SFA)."]